[Event "Titled Tuesday Blitz May 24 Late 2022"]
[White "Medeiros Jr, Francisco De Assis"]
[Black "Stanisz, Patryk"]
[WhiteFideId "2114267"]
[BlackFideId "1123106"]
[WhiteElo "2003"]
[BlackElo "1833"]
[Result "1-0"]
[Round "10"]
[TimeControl "180+1"]
[Date "2022.05.25"]
[WhiteClock "0:00:11"]
[BlackClock "0:00:19"]

1. d4 {[%clk 0:02:56]}  d5 {[%clk 0:02:58]} 2. c4 {[%clk 0:02:57]}  c6 {[%clk 0:02:58]} 3. Nf3 {[%clk 0:02:56]}  Nf6 {[%clk 0:02:57]} 4. e3 {[%clk 0:02:55]}  e6 {[%clk 0:02:57]} 5. Nc3 {[%clk 0:02:54]}  Nbd7 {[%clk 0:02:57]} 6. Bd3 {[%clk 0:02:52]}  dxc4 {[%clk 0:02:57]} 7. Bxc4 {[%clk 0:02:52]}  b5 {[%clk 0:02:57]} 8. Bd3 {[%clk 0:02:51]}  b4 {[%clk 0:02:57]} 9. Nb1 {[%clk 0:02:50]}  c5 {[%clk 0:02:56]} 10. O-O {[%clk 0:02:47]}  Bb7 {[%clk 0:02:56]} 11. Nbd2 {[%clk 0:02:44]}  Be7 {[%clk 0:02:51]} 12. Qe2 {[%clk 0:02:43]}  O-O {[%clk 0:02:49]} 13. Rd1 {[%clk 0:02:41]}  cxd4 {[%clk 0:02:49]} 14. exd4 {[%clk 0:02:35]}  Nd5 {[%clk 0:02:43]} 15. Nc4 {[%clk 0:02:32]}  Rc8 {[%clk 0:02:25]} 16. Nfe5 {[%clk 0:02:25]}  Nxe5 {[%clk 0:01:56]} 17. dxe5 {[%clk 0:02:22]}  g6 {[%clk 0:01:50]} 18. Bh6 {[%clk 0:02:19]}  Re8 {[%clk 0:01:47]} 19. Qg4 {[%clk 0:02:19]}  Rc5 {[%clk 0:01:22]} 20. h4 {[%clk 0:02:18]}  Bxh4 {[%clk 0:00:57]} 21. Nd6 {[%clk 0:02:17]}  Bc6 {[%clk 0:00:53]} 22. Rac1 {[%clk 0:01:36]}  Rxc1 {[%clk 0:00:33]} 23. Rxc1 {[%clk 0:01:37]}  Bd7 {[%clk 0:00:30]} 24. Be4 {[%clk 0:01:26]}  Be7 {[%clk 0:00:27]} 25. Nxe8 {[%clk 0:00:24]}  Bxe8 {[%clk 0:00:27]} 26. Qf3 {[%clk 0:00:24]}  Nb6 {[%clk 0:00:23]} 27. Bc6 {[%clk 0:00:23]}  Bg5 {[%clk 0:00:18]} 28. Bxe8 {[%clk 0:00:22]}  Bxh6 {[%clk 0:00:16]} 29. Qxf7+ {[%clk 0:00:20]}  Kh8 {[%clk 0:00:17]} 30. Rc6 {[%clk 0:00:15]}  Qd1+ {[%clk 0:00:16]} 31. Kh2 {[%clk 0:00:15]}  Qh5+ {[%clk 0:00:16]} 32. Kg3 {[%clk 0:00:08]}  Qxe5+ {[%clk 0:00:14]} 33. f4 {[%clk 0:00:06]}  Qe1+ {[%clk 0:00:12]} 34. Kf3 {[%clk 0:00:05]}  Qf1+ {[%clk 0:00:11]} 35. Ke3 {[%clk 0:00:04]}  Nd5+ {[%clk 0:00:10]} 36. Kd4 {[%clk 0:00:03]}  Qf2+ {[%clk 0:00:09]} 37. Ke5 {[%clk 0:00:03]}  Bg7+ {[%clk 0:00:08]} 38. Kd6 {[%clk 0:00:03]}  Qxf4+ {[%clk 0:00:03]} 39. Kd7 {[%clk 0:00:02]}  Qxf7+ {[%clk 0:00:03]} 40. Bxf7 {[%clk 0:00:01]}  Nf6+ {[%clk 0:00:02]} 41. Kxe6 {[%clk 0:00:01]}  Ne4 {[%clk 0:00:03]} 42. Rc8+ {[%clk 0:00:02]}  Bf8 {[%clk 0:00:03]} 43. Rxf8+ {[%clk 0:00:03]}  Kg7 {[%clk 0:00:03]} 44. Rg8+ {[%clk 0:00:03]}  Kh6 {[%clk 0:00:04]} 45. Be8 {[%clk 0:00:03]}  Ng5+ {[%clk 0:00:05]} 46. Kd7 {[%clk 0:00:04]}  Kh5 {[%clk 0:00:05]} 47. Rf8 {[%clk 0:00:05]}  Kg4 {[%clk 0:00:06]} 48. Rf7 {[%clk 0:00:06]}  h5 {[%clk 0:00:07]} 49. Re7 {[%clk 0:00:06]}  Ne4 {[%clk 0:00:08]} 50. Re5 {[%clk 0:00:07]}  Ng3 {[%clk 0:00:08]} 51. Re4+ {[%clk 0:00:07]}  Kg5 {[%clk 0:00:08]} 52. Re7 {[%clk 0:00:08]}  Kh6 {[%clk 0:00:09]} 53. Rf7 {[%clk 0:00:09]}  Kg5 {[%clk 0:00:10]} 54. Re7 {[%clk 0:00:09]}  h4 {[%clk 0:00:11]} 55. Re6 {[%clk 0:00:10]}  Kh6 {[%clk 0:00:12]} 56. Bxg6 {[%clk 0:00:10]}  Kg5 {[%clk 0:00:13]} 57. Be4 {[%clk 0:00:10]}  Kf4 {[%clk 0:00:13]} 58. Re8 {[%clk 0:00:10]}  Nxe4 {[%clk 0:00:14]} 59. Rf8+ {[%clk 0:00:09]}  Kg3 {[%clk 0:00:14]} 60. Rg8+ {[%clk 0:00:10]}  Kf2 {[%clk 0:00:14]} 61. Ke6 {[%clk 0:00:10]}  Ng3 {[%clk 0:00:15]} 62. Rh8 {[%clk 0:00:10]}  Kxg2 {[%clk 0:00:15]} 63. Rxh4 {[%clk 0:00:10]}  Ne2 {[%clk 0:00:16]} 64. Rxb4 {[%clk 0:00:10]}  Nf4+ {[%clk 0:00:17]} 65. Kf5 {[%clk 0:00:11]}  Kf3 {[%clk 0:00:18]} 66. Rxf4+ {[%clk 0:00:10]}  Ke3 {[%clk 0:00:18]} 67. Rc4 {[%clk 0:00:10]}  Kd3 {[%clk 0:00:19]} 68. Rc8 {[%clk 0:00:10]}  a5 {[%clk 0:00:18]} 69. Ke6 {[%clk 0:00:11]}  a4 {[%clk 0:00:19]} 70. a3 {[%clk 0:00:11]} 1-0


[Site "https://www.chess.com"]

[Event "Titled Tuesday Blitz May 24 Late 2022"]
[White "Mekhitarian, Krikor Sevag"]
[Black "Motylev, Alexander"]
[WhiteFideId "2107660"]
[BlackFideId "4121830"]
[WhiteElo "2598"]
[BlackElo "2470"]
[Result "1-0"]
[Round "10"]
[TimeControl "180+1"]
[Date "2022.05.24"]
[WhiteClock "0:00:03"]
[BlackClock "0:00:06"]

1. d4 {[%clk 0:03:00]}  Nf6 {[%clk 0:02:59]} 2. Nf3 {[%clk 0:03:00]}  d5 {[%clk 0:02:59]} 3. g3 {[%clk 0:03:00]}  g6 {[%clk 0:02:53]} 4. Bg2 {[%clk 0:02:58]}  Bg7 {[%clk 0:02:54]} 5. O-O {[%clk 0:02:58]}  O-O {[%clk 0:02:53]} 6. c3 {[%clk 0:02:57]}  a5 {[%clk 0:02:53]} 7. Bf4 {[%clk 0:02:53]}  c6 {[%clk 0:02:47]} 8. Nbd2 {[%clk 0:02:39]}  a4 {[%clk 0:02:47]} 9. a3 {[%clk 0:02:39]}  Bf5 {[%clk 0:02:47]} 10. Nh4 {[%clk 0:02:33]}  Be6 {[%clk 0:02:48]} 11. e4 {[%clk 0:02:32]}  dxe4 {[%clk 0:02:46]} 12. Nxe4 {[%clk 0:02:33]}  Bb3 {[%clk 0:02:25]} 13. Qe2 {[%clk 0:02:26]}  Nxe4 {[%clk 0:02:25]} 14. Bxe4 {[%clk 0:02:23]}  Nd7 {[%clk 0:02:24]} 15. Bg2 {[%clk 0:02:10]}  Re8 {[%clk 0:02:19]} 16. Nf3 {[%clk 0:02:09]}  Bd5 {[%clk 0:02:06]} 17. Rfe1 {[%clk 0:02:08]}  b5 {[%clk 0:02:06]} 18. Rad1 {[%clk 0:02:02]}  e6 {[%clk 0:02:02]} 19. h4 {[%clk 0:01:52]}  h6 {[%clk 0:02:01]} 20. Nd2 {[%clk 0:01:31]}  Bxg2 {[%clk 0:01:50]} 21. Kxg2 {[%clk 0:01:30]}  Nf6 {[%clk 0:01:50]} 22. Be5 {[%clk 0:01:28]}  Qd5+ {[%clk 0:01:44]} 23. Qf3 {[%clk 0:01:28]}  Qxf3+ {[%clk 0:01:40]} 24. Kxf3 {[%clk 0:01:29]}  Rad8 {[%clk 0:01:35]} 25. Bxf6 {[%clk 0:01:20]}  Bxf6 {[%clk 0:01:35]} 26. Ne4 {[%clk 0:01:19]}  Bg7 {[%clk 0:01:31]} 27. Nc5 {[%clk 0:01:03]}  Rd6 {[%clk 0:01:26]} 28. Re2 {[%clk 0:00:58]}  Re7 {[%clk 0:01:12]} 29. Rde1 {[%clk 0:00:58]}  Kf8 {[%clk 0:01:11]} 30. Nd3 {[%clk 0:00:57]}  Bf6 {[%clk 0:01:08]} 31. h5 {[%clk 0:00:57]}  gxh5 {[%clk 0:01:05]} 32. Re4 {[%clk 0:00:52]}  Rd5 {[%clk 0:01:04]} 33. Nb4 {[%clk 0:00:43]}  Rf5+ {[%clk 0:01:03]} 34. Rf4 {[%clk 0:00:42]}  Rxf4+ {[%clk 0:01:02]} 35. Kxf4 {[%clk 0:00:43]}  Rc7 {[%clk 0:00:58]} 36. Nd3 {[%clk 0:00:39]}  h4 {[%clk 0:00:49]} 37. gxh4 {[%clk 0:00:33]}  Bxh4 {[%clk 0:00:49]} 38. Rh1 {[%clk 0:00:33]}  Bg5+ {[%clk 0:00:47]} 39. Ke4 {[%clk 0:00:34]}  Kg7 {[%clk 0:00:47]} 40. f4 {[%clk 0:00:33]}  Bf6 {[%clk 0:00:46]} 41. Rg1+ {[%clk 0:00:32]}  Kf8 {[%clk 0:00:46]} 42. Rh1 {[%clk 0:00:32]}  Bg7 {[%clk 0:00:46]} 43. Ne5 {[%clk 0:00:28]}  Ke7 {[%clk 0:00:39]} 44. f5 {[%clk 0:00:22]}  Rc8 {[%clk 0:00:34]} 45. Nd3 {[%clk 0:00:20]}  Re8 {[%clk 0:00:18]} 46. fxe6 {[%clk 0:00:18]}  Kxe6 {[%clk 0:00:17]} 47. Nf4+ {[%clk 0:00:18]}  Kf6+ {[%clk 0:00:16]} 48. Kd3 {[%clk 0:00:14]}  Bf8 {[%clk 0:00:16]} 49. Rf1 {[%clk 0:00:14]}  Ke7 {[%clk 0:00:15]} 50. Nh5 {[%clk 0:00:13]}  Rd8 {[%clk 0:00:13]} 51. Re1+ {[%clk 0:00:13]}  Kd6 {[%clk 0:00:13]} 52. Nf6 {[%clk 0:00:12]}  Kc7 {[%clk 0:00:12]} 53. Rf1 {[%clk 0:00:11]}  Be7 {[%clk 0:00:11]} 54. Ng4 {[%clk 0:00:10]}  h5 {[%clk 0:00:10]} 55. Ne5 {[%clk 0:00:05]}  Rf8 {[%clk 0:00:07]} 56. Rf5 {[%clk 0:00:03]}  h4 {[%clk 0:00:07]} 57. Rh5 {[%clk 0:00:03]}  f6 {[%clk 0:00:06]} 58. Ng6 {[%clk 0:00:03]}  Rf7 {[%clk 0:00:07]} 59. Rxh4 {[%clk 0:00:04]}  Rh7 {[%clk 0:00:06]} 60. Rxh7 {[%clk 0:00:03]} 1-0


[Site "https://www.chess.com"]

[Event "Titled Tuesday Blitz May 24 Late 2022"]
[White "Nazaretyan, Tigran"]
[Black "Mikhalsky, Vladimir"]
[WhiteFideId "24162345"]
[BlackFideId "14144352"]
[WhiteElo "2225"]
[BlackElo "2301"]
[Result "0-1"]
[Round "10"]
[TimeControl "180+1"]
[Date "2022.05.25"]
[WhiteClock "0:00:12"]
[BlackClock "0:00:25"]

1. d4 {[%clk 0:03:00]}  Nf6 {[%clk 0:02:59]} 2. c4 {[%clk 0:03:00]}  g6 {[%clk 0:02:57]} 3. Nc3 {[%clk 0:03:00]}  Bg7 {[%clk 0:02:58]} 4. e4 {[%clk 0:03:00]}  O-O {[%clk 0:02:59]} 5. Nf3 {[%clk 0:03:00]}  d6 {[%clk 0:02:59]} 6. Be2 {[%clk 0:03:01]}  e5 {[%clk 0:03:00]} 7. O-O {[%clk 0:03:01]}  Nc6 {[%clk 0:02:59]} 8. d5 {[%clk 0:03:01]}  Ne7 {[%clk 0:03:00]} 9. b4 {[%clk 0:03:02]}  Nh5 {[%clk 0:02:59]} 10. g3 {[%clk 0:03:02]}  a5 {[%clk 0:02:57]} 11. Ba3 {[%clk 0:02:58]}  f5 {[%clk 0:02:54]} 12. Ng5 {[%clk 0:02:58]}  Nf6 {[%clk 0:02:49]} 13. Bf3 {[%clk 0:02:55]}  fxe4 {[%clk 0:02:16]} 14. Ncxe4 {[%clk 0:02:53]}  Nf5 {[%clk 0:02:16]} 15. c5 {[%clk 0:02:47]}  Nd4 {[%clk 0:02:14]} 16. Bg2 {[%clk 0:02:46]}  Nxe4 {[%clk 0:02:10]} 17. Nxe4 {[%clk 0:02:45]}  a4 {[%clk 0:01:49]} 18. Bb2 {[%clk 0:02:39]}  a3 {[%clk 0:01:36]} 19. Bc3 {[%clk 0:02:36]}  Bf5 {[%clk 0:01:30]} 20. Rc1 {[%clk 0:02:34]}  Nb5 {[%clk 0:01:26]} 21. Ba1 {[%clk 0:02:32]}  Bh6 {[%clk 0:01:24]} 22. Rc4 {[%clk 0:02:25]}  Qd7 {[%clk 0:01:18]} 23. c6 {[%clk 0:02:24]}  bxc6 {[%clk 0:01:18]} 24. dxc6 {[%clk 0:02:20]}  Qf7 {[%clk 0:01:14]} 25. Qb3 {[%clk 0:01:33]}  Be6 {[%clk 0:01:11]} 26. Rfc1 {[%clk 0:01:28]}  d5 {[%clk 0:01:10]} 27. Bxe5 {[%clk 0:00:59]}  dxc4 {[%clk 0:01:05]} 28. Qd1 {[%clk 0:00:53]}  Bg7 {[%clk 0:00:54]} 29. Ng5 {[%clk 0:00:49]}  Qxf2+ {[%clk 0:00:54]} 30. Kh1 {[%clk 0:00:49]}  Rad8 {[%clk 0:00:46]} 31. Qa4 {[%clk 0:00:36]}  Rd2 {[%clk 0:00:38]} 32. Rg1 {[%clk 0:00:27]}  Qxg2+ {[%clk 0:00:29]} 33. Rxg2 {[%clk 0:00:15]}  Rf1+ {[%clk 0:00:28]} 34. Rg1 {[%clk 0:00:13]}  Bd5+ {[%clk 0:00:27]} 35. Ne4 {[%clk 0:00:12]}  Bxe4# {[%clk 0:00:25]} 0-1


[Site "https://www.chess.com"]

[Event "Titled Tuesday Blitz May 24 Late 2022"]
[White "Pranav, V"]
[Black "Paravyan, David"]
[WhiteFideId "25060783"]
[BlackFideId "4194985"]
[WhiteElo "2349"]
[BlackElo "2569"]
[Result "0-1"]
[Round "10"]
[TimeControl "180+1"]
[Date "2022.05.24"]
[WhiteClock "0:00:06"]
[BlackClock "0:00:10"]

1. Nf3 {[%clk 0:03:00]}  Nf6 {[%clk 0:02:57]} 2. g3 {[%clk 0:03:00]}  g6 {[%clk 0:02:58]} 3. Bg2 {[%clk 0:02:59]}  Bg7 {[%clk 0:02:57]} 4. O-O {[%clk 0:02:59]}  O-O {[%clk 0:02:57]} 5. d3 {[%clk 0:03:00]}  d5 {[%clk 0:02:56]} 6. Nbd2 {[%clk 0:03:00]}  c5 {[%clk 0:02:57]} 7. e4 {[%clk 0:03:00]}  Nc6 {[%clk 0:02:58]} 8. exd5 {[%clk 0:02:59]}  Nxd5 {[%clk 0:02:56]} 9. Re1 {[%clk 0:03:00]}  Qc7 {[%clk 0:02:55]} 10. Nc4 {[%clk 0:02:55]}  Rd8 {[%clk 0:02:54]} 11. c3 {[%clk 0:02:52]}  b6 {[%clk 0:02:50]} 12. Qe2 {[%clk 0:02:50]}  Bb7 {[%clk 0:02:40]} 13. Ng5 {[%clk 0:02:48]}  Qd7 {[%clk 0:02:36]} 14. Bh3 {[%clk 0:02:40]}  Qe8 {[%clk 0:02:07]} 15. Be6 {[%clk 0:02:27]}  Ne5 {[%clk 0:01:33]} 16. Nxe5 {[%clk 0:01:58]}  fxe6 {[%clk 0:01:31]} 17. Nxe6 {[%clk 0:01:58]}  Rd6 {[%clk 0:01:14]} 18. Nxg7 {[%clk 0:01:58]}  Kxg7 {[%clk 0:01:15]} 19. Qg4 {[%clk 0:01:50]}  Qc8 {[%clk 0:01:12]} 20. Qh4 {[%clk 0:01:50]}  Qf5 {[%clk 0:01:10]} 21. Bh6+ {[%clk 0:01:48]}  Kg8 {[%clk 0:01:10]} 22. Qe4 {[%clk 0:01:38]}  Qh5 {[%clk 0:00:43]} 23. Bd2 {[%clk 0:01:32]}  Rb8 {[%clk 0:00:38]} 24. Ng4 {[%clk 0:01:17]}  Nf6 {[%clk 0:00:29]} 25. Nxf6+ {[%clk 0:00:58]}  Rxf6 {[%clk 0:00:29]} 26. Qe5 {[%clk 0:00:31]}  Qf3 {[%clk 0:00:28]} 27. Qxb8+ {[%clk 0:00:29]}  Rf8 {[%clk 0:00:29]} 28. Qxb7 {[%clk 0:00:29]}  Qxb7 {[%clk 0:00:27]} 29. Re3 {[%clk 0:00:30]}  Qd5 {[%clk 0:00:24]} 30. Rae1 {[%clk 0:00:26]}  Rf7 {[%clk 0:00:24]} 31. c4 {[%clk 0:00:25]}  Qf5 {[%clk 0:00:24]} 32. R1e2 {[%clk 0:00:25]}  Kf8 {[%clk 0:00:19]} 33. Bc3 {[%clk 0:00:21]}  Ke8 {[%clk 0:00:19]} 34. h4 {[%clk 0:00:21]}  Kd7 {[%clk 0:00:19]} 35. d4 {[%clk 0:00:21]}  cxd4 {[%clk 0:00:18]} 36. Bxd4 {[%clk 0:00:22]}  Qb1+ {[%clk 0:00:19]} 37. Kg2 {[%clk 0:00:20]}  Qxa2 {[%clk 0:00:18]} 38. Rd2 {[%clk 0:00:19]}  Kc6 {[%clk 0:00:15]} 39. Rc3 {[%clk 0:00:10]}  Kb7 {[%clk 0:00:15]} 40. c5 {[%clk 0:00:10]}  Qd5+ {[%clk 0:00:14]} 41. Kh2 {[%clk 0:00:10]}  bxc5 {[%clk 0:00:06]} 42. Rxc5 {[%clk 0:00:08]}  Rxf2+ {[%clk 0:00:06]} 43. Rxf2 {[%clk 0:00:08]}  Qxd4 {[%clk 0:00:06]} 44. Rfc2 {[%clk 0:00:08]}  e5 {[%clk 0:00:06]} 45. Rc7+ {[%clk 0:00:09]}  Kb6 {[%clk 0:00:07]} 46. Rxh7 {[%clk 0:00:10]}  e4 {[%clk 0:00:07]} 47. Re7 {[%clk 0:00:09]}  Qd3 {[%clk 0:00:05]} 48. Rf2 {[%clk 0:00:08]}  e3 {[%clk 0:00:05]} 49. Rg2 {[%clk 0:00:05]}  a5 {[%clk 0:00:03]} 50. Re5 {[%clk 0:00:05]}  a4 {[%clk 0:00:03]} 51. Kh3 {[%clk 0:00:04]}  Qd7+ {[%clk 0:00:03]} 52. g4 {[%clk 0:00:04]}  Qd3 {[%clk 0:00:03]} 53. Re6+ {[%clk 0:00:03]}  Kc5 {[%clk 0:00:03]} 54. Kh2 {[%clk 0:00:03]}  Qd4 {[%clk 0:00:02]} 55. Kh3 {[%clk 0:00:02]}  Qf4 {[%clk 0:00:02]} 56. Rg3 {[%clk 0:00:01]}  Qf1+ {[%clk 0:00:03]} 57. Kh2 {[%clk 0:00:02]}  e2 {[%clk 0:00:03]} 58. Rge3 {[%clk 0:00:01]}  Qf2+ {[%clk 0:00:04]} 59. Kh3 {[%clk 0:00:02]}  Qf1+ {[%clk 0:00:05]} 60. Kg3 {[%clk 0:00:02]}  Qg1+ {[%clk 0:00:02]} 61. Kf4 {[%clk 0:00:02]}  Qf2+ {[%clk 0:00:02]} 62. Kg5 {[%clk 0:00:03]}  e1=Q {[%clk 0:00:03]} 63. Rxe1 {[%clk 0:00:03]}  Qxb2 {[%clk 0:00:04]} 64. R1e5+ {[%clk 0:00:04]}  Kd4 {[%clk 0:00:04]} 65. Re4+ {[%clk 0:00:04]}  Kd5 {[%clk 0:00:04]} 66. Kxg6 {[%clk 0:00:01]}  a3 {[%clk 0:00:05]} 67. Re8 {[%clk 0:00:01]}  a2 {[%clk 0:00:06]} 68. Re1 {[%clk 0:00:01]}  Qb1+ {[%clk 0:00:06]} 69. Rxb1 {[%clk 0:00:02]}  axb1=Q+ {[%clk 0:00:07]} 70. Kh5 {[%clk 0:00:02]}  Qh7+ {[%clk 0:00:07]} 71. Kg5 {[%clk 0:00:03]}  Qg7+ {[%clk 0:00:08]} 72. Kh5 {[%clk 0:00:03]}  Qf7+ {[%clk 0:00:08]} 73. Kh6 {[%clk 0:00:03]}  Qxe8 {[%clk 0:00:09]} 74. g5 {[%clk 0:00:04]}  Ke6 {[%clk 0:00:09]} 75. g6 {[%clk 0:00:05]}  Kf6 {[%clk 0:00:10]} 76. g7 {[%clk 0:00:06]}  Qg6# {[%clk 0:00:10]} 0-1


[Site "https://www.chess.com"]

[Event "Titled Tuesday Blitz May 24 Late 2022"]
[White "Przybylski, Wojciech"]
[Black "Gong, Patrick"]
[WhiteFideId "1117599"]
[BlackFideId "3222500"]
[WhiteElo "2133"]
[BlackElo "2103"]
[Result "0-1"]
[Round "10"]
[TimeControl "180+1"]
[Date "2022.05.24"]
[WhiteClock "0:00:03"]
[BlackClock "0:00:26"]

1. d4 {[%clk 0:02:57]}  Nf6 {[%clk 0:02:57]} 2. c4 {[%clk 0:02:51]}  c5 {[%clk 0:02:58]} 3. dxc5 {[%clk 0:02:50]}  Qa5+ {[%clk 0:02:56]} 4. Nc3 {[%clk 0:02:49]}  Ne4 {[%clk 0:02:53]} 5. Bd2 {[%clk 0:02:46]}  Nxd2 {[%clk 0:02:53]} 6. Qxd2 {[%clk 0:02:46]}  Qxc5 {[%clk 0:02:54]} 7. e3 {[%clk 0:02:45]}  d6 {[%clk 0:02:49]} 8. Nf3 {[%clk 0:02:38]}  Be6 {[%clk 0:02:38]} 9. Rc1 {[%clk 0:02:36]}  g6 {[%clk 0:02:36]} 10. Ne4 {[%clk 0:02:29]}  Qc6 {[%clk 0:02:26]} 11. Qd4 {[%clk 0:02:24]}  Rg8 {[%clk 0:02:19]} 12. c5 {[%clk 0:02:16]}  Bg7 {[%clk 0:02:17]} 13. Qb4 {[%clk 0:02:05]}  Na6 {[%clk 0:02:08]} 14. Qb5 {[%clk 0:01:55]}  Bd7 {[%clk 0:02:06]} 15. Qd3 {[%clk 0:01:31]}  Bxb2 {[%clk 0:01:40]} 16. Rb1 {[%clk 0:01:19]}  d5 {[%clk 0:01:32]} 17. Ned2 {[%clk 0:00:56]}  Bg7 {[%clk 0:01:19]} 18. Be2 {[%clk 0:00:44]}  Nxc5 {[%clk 0:01:15]} 19. Qa3 {[%clk 0:00:43]}  Ne4 {[%clk 0:01:06]} 20. O-O {[%clk 0:00:42]}  Nc3 {[%clk 0:01:06]} 21. Rbe1 {[%clk 0:00:38]}  Rc8 {[%clk 0:00:49]} 22. Nd4 {[%clk 0:00:37]}  Qc5 {[%clk 0:00:48]} 23. Qb3 {[%clk 0:00:33]}  b5 {[%clk 0:00:44]} 24. Bd1 {[%clk 0:00:19]}  b4 {[%clk 0:00:44]} 25. N2f3 {[%clk 0:00:11]}  Ba4 {[%clk 0:00:42]} 26. Qxa4+ {[%clk 0:00:07]}  Nxa4 {[%clk 0:00:41]} 27. Bxa4+ {[%clk 0:00:07]}  Kf8 {[%clk 0:00:42]} 28. Ng5 {[%clk 0:00:06]}  Bxd4 {[%clk 0:00:40]} 29. exd4 {[%clk 0:00:06]}  Qxd4 {[%clk 0:00:41]} 30. Nxh7+ {[%clk 0:00:06]}  Kg7 {[%clk 0:00:41]} 31. Ng5 {[%clk 0:00:06]}  Rc7 {[%clk 0:00:37]} 32. Bb3 {[%clk 0:00:06]}  Qf4 {[%clk 0:00:33]} 33. Nf3 {[%clk 0:00:05]}  e6 {[%clk 0:00:33]} 34. Re3 {[%clk 0:00:04]}  Rc3 {[%clk 0:00:32]} 35. Re2 {[%clk 0:00:04]}  Rgc8 {[%clk 0:00:31]} 36. Ne5 {[%clk 0:00:04]}  Rc1 {[%clk 0:00:28]} 37. g3 {[%clk 0:00:03]}  Rxf1+ {[%clk 0:00:28]} 38. Kxf1 {[%clk 0:00:04]}  Rc1+ {[%clk 0:00:27]} 39. Kg2 {[%clk 0:00:04]}  Qf5 {[%clk 0:00:28]} 40. Ba4 {[%clk 0:00:03]}  Rc4 {[%clk 0:00:22]} 41. Be8 {[%clk 0:00:02]}  Re4 {[%clk 0:00:22]} 42. Rxe4 {[%clk 0:00:01]}  Qxe4+ {[%clk 0:00:22]} 43. Nf3 {[%clk 0:00:02]}  d4 {[%clk 0:00:22]} 44. Ba4 {[%clk 0:00:01]}  d3 {[%clk 0:00:22]} 45. Bd1 {[%clk 0:00:01]}  d2 {[%clk 0:00:22]} 46. Kf1 {[%clk 0:00:01]}  Qd3+ {[%clk 0:00:22]} 47. Kg2 {[%clk 0:00:01]}  a5 {[%clk 0:00:22]} 48. Ne5 {[%clk 0:00:01]}  Qd5+ {[%clk 0:00:22]} 49. Nf3 {[%clk 0:00:01]}  a4 {[%clk 0:00:22]} 50. Kf1 {[%clk 0:00:01]}  Qd3+ {[%clk 0:00:23]} 51. Kg2 {[%clk 0:00:01]}  b3 {[%clk 0:00:24]} 52. axb3 {[%clk 0:00:01]}  axb3 {[%clk 0:00:24]} 53. Bxb3 {[%clk 0:00:01]}  Qxb3 {[%clk 0:00:24]} 54. Nxd2 {[%clk 0:00:01]}  Qd5+ {[%clk 0:00:25]} 55. Nf3 {[%clk 0:00:01]}  g5 {[%clk 0:00:25]} 56. g4 {[%clk 0:00:01]}  f5 {[%clk 0:00:26]} 57. h3 {[%clk 0:00:02]}  Qe4 {[%clk 0:00:25]} 58. Kg3 {[%clk 0:00:02]}  f4+ {[%clk 0:00:25]} 59. Kg2 {[%clk 0:00:02]}  Kf6 {[%clk 0:00:26]} 60. h4 {[%clk 0:00:02]}  gxh4 {[%clk 0:00:26]} 61. Kh2 {[%clk 0:00:02]}  Qxf3 {[%clk 0:00:25]} 62. g5+ {[%clk 0:00:03]}  Kxg5 {[%clk 0:00:25]} 63. Kg1 {[%clk 0:00:02]}  h3 {[%clk 0:00:25]} 64. Kf1 {[%clk 0:00:03]}  Qd1# {[%clk 0:00:26]} 0-1


[Site "https://www.chess.com"]

[Event "Titled Tuesday Blitz May 24 Late 2022"]
[White "Romero Ruscalleda, Josep"]
[Black "Lehtosaari, Mauri"]
[WhiteFideId "2231859"]
[BlackFideId "501999"]
[WhiteElo "2312"]
[BlackElo "2460"]
[Result "1-0"]
[Round "10"]
[TimeControl "180+1"]
[Date "2022.05.25"]
[WhiteClock "0:00:04"]
[BlackClock "0:00:13"]

1. e4 {[%clk 0:03:00]}  c5 {[%clk 0:02:59]} 2. c3 {[%clk 0:03:00]}  e6 {[%clk 0:02:57]} 3. d4 {[%clk 0:03:00]}  Nf6 {[%clk 0:02:57]} 4. e5 {[%clk 0:02:59]}  Nd5 {[%clk 0:02:57]} 5. Nf3 {[%clk 0:02:58]}  cxd4 {[%clk 0:02:57]} 6. cxd4 {[%clk 0:02:57]}  b6 {[%clk 0:02:57]} 7. a3 {[%clk 0:02:52]}  Bb7 {[%clk 0:02:54]} 8. Bd3 {[%clk 0:02:51]}  d6 {[%clk 0:02:53]} 9. O-O {[%clk 0:02:50]}  Nd7 {[%clk 0:02:50]} 10. Re1 {[%clk 0:02:49]}  Rc8 {[%clk 0:02:44]} 11. Bd2 {[%clk 0:02:48]}  Be7 {[%clk 0:02:38]} 12. Nc3 {[%clk 0:02:48]}  Nxc3 {[%clk 0:02:26]} 13. Bxc3 {[%clk 0:02:48]}  O-O {[%clk 0:02:25]} 14. Qe2 {[%clk 0:02:45]}  dxe5 {[%clk 0:02:18]} 15. dxe5 {[%clk 0:02:28]}  Nc5 {[%clk 0:02:14]} 16. Bc2 {[%clk 0:02:28]}  Qc7 {[%clk 0:02:04]} 17. Rad1 {[%clk 0:02:20]}  Rfd8 {[%clk 0:02:00]} 18. Rxd8+ {[%clk 0:02:03]}  Rxd8 {[%clk 0:01:57]} 19. Rd1 {[%clk 0:02:02]}  Rxd1+ {[%clk 0:01:54]} 20. Qxd1 {[%clk 0:02:03]}  g6 {[%clk 0:01:45]} 21. Qd4 {[%clk 0:01:53]}  Nd7 {[%clk 0:01:38]} 22. Nd2 {[%clk 0:01:46]}  Bc5 {[%clk 0:01:30]} 23. Qf4 {[%clk 0:01:37]}  f5 {[%clk 0:01:24]} 24. Nf3 {[%clk 0:01:27]}  Bxa3 {[%clk 0:01:13]} 25. Ng5 {[%clk 0:01:14]}  Nf8 {[%clk 0:01:11]} 26. Qa4 {[%clk 0:01:06]}  Be7 {[%clk 0:01:04]} 27. Nf3 {[%clk 0:00:57]}  Bxf3 {[%clk 0:01:03]} 28. gxf3 {[%clk 0:00:57]}  Qd7 {[%clk 0:01:02]} 29. Qa1 {[%clk 0:00:51]}  a5 {[%clk 0:00:56]} 30. Bb3 {[%clk 0:00:51]}  Bc5 {[%clk 0:00:55]} 31. Qa2 {[%clk 0:00:47]}  Kf7 {[%clk 0:00:55]} 32. Kg2 {[%clk 0:00:47]}  Qe7 {[%clk 0:00:52]} 33. Bc4 {[%clk 0:00:45]}  Qh4 {[%clk 0:00:50]} 34. Be1 {[%clk 0:00:43]}  Qf4 {[%clk 0:00:50]} 35. Qb3 {[%clk 0:00:35]}  Qxe5 {[%clk 0:00:47]} 36. Qb5 {[%clk 0:00:35]}  Qd6 {[%clk 0:00:46]} 37. Qa6 {[%clk 0:00:30]}  Nd7 {[%clk 0:00:44]} 38. Bc3 {[%clk 0:00:26]}  Qe7 {[%clk 0:00:41]} 39. Qc8 {[%clk 0:00:24]}  Qe8 {[%clk 0:00:36]} 40. Qc6 {[%clk 0:00:19]}  Nf6 {[%clk 0:00:30]} 41. Qc7+ {[%clk 0:00:12]}  Qe7 {[%clk 0:00:30]} 42. Qe5 {[%clk 0:00:12]}  Bd6 {[%clk 0:00:28]} 43. Qd4 {[%clk 0:00:12]}  h6 {[%clk 0:00:26]} 44. h4 {[%clk 0:00:11]}  h5 {[%clk 0:00:25]} 45. Qxb6 {[%clk 0:00:10]}  Bb4 {[%clk 0:00:24]} 46. Bd4 {[%clk 0:00:09]}  Ne8 {[%clk 0:00:18]} 47. Qc6 {[%clk 0:00:09]}  Nd6 {[%clk 0:00:18]} 48. Bb3 {[%clk 0:00:08]}  Ne8 {[%clk 0:00:18]} 49. Be5 {[%clk 0:00:08]}  Nf6 {[%clk 0:00:18]} 50. Qc8 {[%clk 0:00:08]}  Qe8 {[%clk 0:00:16]} 51. Qb7+ {[%clk 0:00:06]}  Qe7 {[%clk 0:00:16]} 52. Qb5 {[%clk 0:00:07]}  Nd7 {[%clk 0:00:15]} 53. Bd4 {[%clk 0:00:06]}  Bd6 {[%clk 0:00:16]} 54. Qc6 {[%clk 0:00:06]}  Bb8 {[%clk 0:00:15]} 55. Ba4 {[%clk 0:00:06]}  Ne5 {[%clk 0:00:15]} 56. Qc8 {[%clk 0:00:05]}  Bd6 {[%clk 0:00:15]} 57. Qh8 {[%clk 0:00:04]}  Nd3 {[%clk 0:00:13]} 58. Qg7# {[%clk 0:00:04]} 1-0


[Site "https://www.chess.com"]